Cogmind - Beta 11.1 *** ADVENTURER MODE // 2022.04.28 @ 21:23:28 Player: Zolethian Result: Destroyed by as-54665 with Assembled Rifle Performance ------------- Evolutions (0) 0 Regions Visited (2) 400 Robots Destroyed (25) 125 Value Destroyed (438) 438 Prototype IDs (5) 100 Alien Tech Used (0) 0 Bonus (0) 0 TOTAL SCORE: 1063 Bonus ------- None Cogmind --------- Core Integrity 0/250 Matter 300/300 Energy 99/100 System Corruption 0% Temperature Cool (0) Movement Core (200) Ox3 Location -10/Mines Parts ------- > --- POWER (1) -------- (None) > --- PROPULSION (2) --- (None) > --- UTILITY (2) ------ Medium Storage Unit > --- WEAPON (2) ------- Medium Laser > --- INVENTORY (10) --- Large Storage Unit Medium Battery (150) High-capacity Matter Pod (25) Structural Scanner Sensor Array Signal Interpreter Light Armor Plating Light Armor Plating Medium Laser Peak State ------------ > --- POWER ------------ Light Nuclear Core > --- PROPULSION ------- Aluminum Leg Aluminum Leg > --- UTILITY ---------- Medium Storage Unit Improved Terrain Scanner > --- WEAPON ----------- Medium Laser Beam Cannon > --- INVENTORY -------- Ion Engine Large Storage Unit Medium Battery Sensor Array Signal Interpreter Light Armor Plating Medium Laser [Rating: 11] Favorites ----------- Power Ion Engine Engine Ion Engine Power Core Light Nuclear Core Propulsion Aluminum Leg Leg Aluminum Leg Utility Medium Storage Unit Device Improved Terrain Scanner Storage Medium Storage Unit Weapon Medium Laser Energy Gun Medium Laser Energy Cannon Beam Cannon Build | -11 -10 -10 ------- Run | Scr Mat Min Slots Evolved . | . . . Power . | . . . Propulsion . | . . . Utility . | . . . Weapon . | . . . Parts Attached 21 | 8 13 . Power 3 | 1 2 . Engine 2 | 1 1 . Core 1 | . 1 . Reactor . | . . . Propulsion 7 | 2 5 . Treads . | . . . Leg 7 | 2 5 . Wheel . | . . . Hover . | . . . Flight . | . . . Utility 7 | 3 4 . Device 3 | 2 1 . Storage 4 | 1 3 . Processor . | . . . Hackware . | . . . Protection . | . . . Artifact . | . . . Weapon 4 | 2 2 . Energy Gun 3 | 2 1 . Energy Cannon 1 | . 1 . Ballistic Gun . | . . . Ballistic Cannon . | . . . Launcher . | . . . Special Weapon . | . . . Impact Weapon . | . . . Slashing Weapon . | . . . Piercing Weapon . | . . . Special Melee Weapon . | . . . Unidentified Prototypes . | . . . Parts Lost 6 | . 1 5 Power 1 | . . 1 Propulsion 2 | . . 2 Utility 2 | . 1 1 Weapon 1 | . . 1 Highest Loss Streak 5 | . 1 5 To Critical Strikes . | . . . Average Slot Usage (%) 98 | . 99 96 Engine 8 | . 9 . Core 5 | . 4 12 Leg 27 | . 28 26 Device 13 | . 13 12 Storage 14 | . 14 14 Energy Gun 18 | . 18 14 Energy Cannon 9 | . 9 14 Naked Turns . | . . . Heaviest Build 21 | 15 21 21 Greatest Support 20 | 20 20 20 Greatest Overweight (x) 4 | 1 1 4 Average Overweight (x) . | . . 1 Largest Inventory Capacity 15 | 8 15 10 Average Capacity 9 | 7 9 10 Most Carried 10 | 4 10 9 Average Carried 6 | . 6 7 Final Capacity 10 | 8 10 10 Final Carried 9 | 1 7 9 Class Distribution -------------------- 81% | Mutant 18% | Scavenger-Mutant Dominant Class ---------------- Mutant | -10/Materials Mutant | -10/Mines Resources | -11 -10 -10 ----------- Run | Scr Mat Min Matter Collected 410 | 280 130 . Remotely . | . . . Salvage Created 743 | 187 466 90 Parts 51 | 10 35 6 Haulers Intercepted . | . . . Recyclers Shooed . | . . . Parts Field Recycled . | . . . Retrieved Matter . | . . . Parts Self-Destructed . | . . . Prevented . | . . . Kills | -11 -10 -10 ------- Run | Scr Mat Min Combat Hostiles Destroyed 17 | . 11 6 Guns 11 | . 7 4 Cannons 6 | . 4 2 Classes Destroyed 8 | 3 4 1 Worker 2 | 2 . . Builder 1 | . 1 . Tunneler 5 | 4 1 . Recycler 1 | 1 . . Watcher 2 | . 2 . Swarmer 6 | . 3 3 Grunt 8 | . 8 . Assembled 3 | . . 3 Best Kill Streak 6 | 6 4 3 Combat Bots Only 3 | . 3 3 Max Kills in Single Turn 1 | 1 1 1 Gunslinging . | . . . Exploded . | . . . Melee . | . . . Uniques/NPCs Destroyed . | . . . Combat | -11 -10 -10 -------- Run | Scr Mat Min Damage Taken 983 | . 422 561 Core 259 | . 87 172 Absorbed by Shields . | . . . Core Remaining (%) 100 | 100 . . Volleys Fired 66 | 19 35 12 Largest 2 | 2 2 2 Hottest 110 | 100 110 110 Shots Fired 131 | 38 69 24 Gun 98 | 38 48 12 Cannon 33 | . 21 12 Launcher . | . . . Special . | . . . Kinetic . | . . . Thermal 131 | 38 69 24 Explosive . | . . . Electromagnetic . | . . . Robot Hit Streak 19 | 6 19 5 Robot Miss Streak 2 | 2 2 2 Penetration Max . | . . . Secondary Targets 1 | . 1 . Max Gunslinging Chain 1 | . 1 . Shots Hit Robots 88 | 26 48 14 Core Hits 41 | 8 23 10 Critical Kills . | . . . Critical Parts Destroyed . | . . . Critical Strikes 14 | 6 7 1 Burn 14 | 6 7 1 Melee Attacks . | . . . Impact . | . . . Slashing . | . . . Piercing . | . . . Sneak Attacks . | . . . Combat Hostiles . | . . . Follow-up Attacks . | . . . Damage Inflicted 1204 | 288 677 239 Guns 867 | 288 464 115 Cannons 333 | . 209 124 Explosions . | . . . Melee . | . . . Ramming 4 | . 4 . Kinetic . | . . . Thermal 1200 | 288 673 239 Explosive . | . . . Electromagnetic . | . . . Impact . | . . . Slashing . | . . . Piercing . | . . . Highest Corruption . | . . . Average Corruption . | . . . Corruption Purged . | . . . Corruption Blocked . | . . . Overload Shots . | . . . Overflow Damage . | . . . Projectiles . | . . . Explosions . | . . . Melee . | . . . Knockbacks . | . . . Impact . | . . . Kinetic . | . . . Secondary . | . . . Self-Inflicted Damage . | . . . Shots . | . . . Rammed . | . . . Targets Rammed 2 | . 1 1 Kicked 2 | . 1 1 Crushed . | . . . Highest Temperature 580 | 287 580 430 Average Temperature 145 | 118 143 189 Received Heat Transfer 390 | . 270 120 Effects 9 | 1 7 1 Shutdowns 3 | . 3 . Energy Bleed 1 | 1 . . Interference 3 | . 2 1 Damage (minor) 1 | . 1 . Damage (core) 1 | . 1 . Siege Activations . | . . . Robots Corrupted . | . . . Combat Hostiles . | . . . Parts Fried . | . . . Impact Corruptions . | . . . Robots Melted . | . . . Combat Hostiles . | . . . Parts Melted 9 | 2 6 1 Heat Transferred 4292 | 1295 2331 666 Parts Sabotaged . | . . . Parts Stolen . | . . . Parts Stripped . | . . . Power Chain Reactions . | . . . Missiles Intercepted . | . . . Alert | -11 -10 -10 ------- Run | Scr Mat Min Peak Influence 155 | 35 155 70 Initial 19 | . 19 . Average 61 | 16 67 65 Maximum Alert Level . | . . . Low Security (%) 100 | 100 100 100 Level 1 . | . . . Level 2 . | . . . Level 3 . | . . . Level 4 . | . . . Level 5 . | . . . High Security . | . . . Max Security . | . . . Squads Dispatched 1 | . 1 . Investigation 1 | . 1 . Extermination . | . . . Reinforcement . | . . . Assault . | . . . Garrison . | . . . Intercept . | . . . Searches Triggered . | . . . Construction Impeded . | . . . Haulers Reinforced . | . . . Active Scanning Responses . | . . . Cargo Convoy Interrupts . | . . . Stealth | -11 -10 -10 --------- Run | Scr Mat Min Distress Signals 2 | . 1 1 Communications Jammed . | . . . Distress Signals . | . . . Times Spotted 37 | . 17 20 Peak Tracking Total 16 | . 3 16 Tactical Retreats 1 | . . 1 Traps | -11 -10 -10 ------- Run | Scr Mat Min Traps Triggered 1 | . 1 . Indirectly . | . . . Trap Hack Attempts . | . . . Triggered . | . . . Disarmed 5 | . 5 . Reprogrammed . | . . . Reused . | . . . Traps Extracted . | . . . Installed . | . . . Triggered . | . . . Machines | -11 -10 -10 ---------- Run | Scr Mat Min Machines Disabled . | . . . Max in Single Turn . | . . . Machines Sabotaged . | . . . Garrisons Compromised . | . . . Overloaded Fab Kills . | . . . Hacking | -11 -10 -10 --------- Run | Scr Mat Min Machines Accessed 10 | . 10 . Terminals 8 | . 8 . Fabricators . | . . . Repair Stations . | . . . Recycling Units 2 | . 2 . Scanalyzers . | . . . Garrison Access . | . . . Total Hacks 22 | . 22 . Successful 20 | . 20 . Failed 2 | . 2 . Catastrophic 1 | . 1 . Database Lockouts . | . . . Manual . | . . . Terminals 18 | . 18 . Fabricators . | . . . Repair Stations . | . . . Recycling Units 4 | . 4 . Scanalyzers . | . . . Garrison Access . | . . . Terminal Hacks 16 | . 16 . Robot Analysis 1 | . 1 . Prototype ID Bank 3 | . 3 . Emergency Access Points 1 | . 1 . Alert Level 1 | . 1 . Locate Traps 3 | . 3 . Disarm Traps 2 | . 2 . Dispatch Records 1 | . 1 . Maintenance Status 1 | . 1 . Recall Investigation 1 | . 1 . Hauler Manifests 1 | . 1 . Zone Layout 1 | . 1 . Fabricator Hacks . | . . . Repair Station Hacks . | . . . Recycling Unit Hacks 4 | . 4 . Report Inventory 2 | . 2 . Retrieve Components 2 | . 2 . Scanalyzer . | . . . Garrison Access Hacks . | . . . Unauthorized Hacks . | . . . Terminals . | . . . Fabricators . | . . . Repair Stations . | . . . Recycling Units . | . . . Scanalyzers . | . . . Garrison Access . | . . . Data Cores Recovered . | . . . Used . | . . . Hacking Detections 8 | . 8 . Full Trace Events 1 | . 1 . Feedback Events . | . . . Feedback Blocked . | . . . Robot Schematics Acquired . | . . . Robots Built . | . . . Authchips . | . . . Time . | . . . Total Robot Build Rating . | . . . Part Schematics Acquired . | . . . Parts Built . | . . . Authchips . | . . . Time . | . . . Total Part Build Rating . | . . . Parts Repaired . | . . . Time . | . . . Parts Recycled . | . . . Recycled Matter . | . . . Retrieved Matter . | . . . Retrieved Components 18 | . 18 . Parts Scanalyzed . | . . . Part Schematics Acquired . | . . . Parts Damaged . | . . . Bothacking | -11 -10 -10 ------------ Run | Scr Mat Min Used RIF Installer . | . . . Robots Hacked . | . . . Non-combat . | . . . Combat . | . . . Robot Hacks Applied . | . . . Relay Couplers Released . | . . . Fabnet Peak Effective % . | . . . Robots Rewired . | . . . Allies Hacked . | . . . Hacks Repelled . | . . . Allies | -11 -10 -10 -------- Run | Scr Mat Min Total Allies . | . . . Largest Group . | . . . Highest-Rated Group . | . . . Highest-Rated Ally . | . . . Total Orders . | . . . Ally Attacks . | . . . Total Damage . | . . . Kills . | . . . Allies Corrupted . | . . . Allies Melted . | . . . Intel | -11 -10 -10 ------- Run | Scr Mat Min Robot Analysis Total 1 | . 1 . Derelict Logs Recovered . | . . . Drone Launches . | . . . Drone Recoveries . | . . . Exploration | -11 -10 -10 ------------- Run | Scr Mat Min Turns Passed 1686 | 185 1261 240 Spaces Moved 894 | 99 690 105 Core 21 | 17 . 4 Treads . | . . . Legs 873 | 82 690 101 Wheels . | . . . Hover . | . . . Flight . | . . . Fastest Speed 50 | 50 120 190 Average Speed 155 | 113 156 190 Slowest Speed 250 | 120 190 250 Overloaded Moves . | . . . Propulsion Burnouts . | . . . Robots Hopped . | . . . Cave-ins Triggered . | . . . Exploration Rate (%) 44 | 6 98 30 Regions Visited 2 Branch Regions 1 Pre-discovered Areas . | . . . Known Exits Taken . | . . . Unknown Exits Taken 2 | 1 1 . Scrap Searched 1 | . . 1 Spaces Dug . | . . . Terrain Destroyed . | . . . Melee . | . . . Projectile . | . . . AOE . | . . . Terrain Rammed . | . . . Walls Destroyed . | . . . Machines Disabled . | . . . Actions | -11 -10 -10 --------- Run | Scr Mat Min Total 1057 | 133 803 121 Wait 31 | . 30 1 Move 892 | 98 689 105 Hop . | . . . Pick Up 31 | 8 21 2 Fast Attach . | . . . Attach 9 | 7 2 . Detach . | . . . Swap 12 | 1 11 . Drop 14 | . 14 . Fire 66 | 19 35 12 Melee . | . . . Ram . | . . . Kick 2 | . 1 1 Crush . | . . . Escape Stasis . | . . . Rewire . | . . . Trap . | . . . Miscellaneous . | . . . Route ------- -11/Scrapyard -10/Materials (discovered 5 exits: [*Mat x3] / [*Min x2]) -10/Mines (discovered 1 exit: [*Mat]) History --------- Turn | Location | Event 13 | -11/Scrapyard | Discovered new exit (range 15) 186 | -11/Scrapyard | Entered Materials 287 | -10/Materials | Discovered new exit (range 7) 301 | -10/Materials | Build established: Mutant 434 | -10/Materials | Discovered new exit (range 11) 798 | -10/Materials | Discovered new exit (range 15) 1071 | -10/Materials | Discovered new exit (range 12) 1217 | -10/Materials | Build established: Scavenger-Mutant 1288 | -10/Materials | Discovered new exit (range 15) 1447 | -10/Materials | Entered Mines 1485 | -10/Mines | Met a Derelict bent on vengeance 1510 | -10/Mines | Discovered new exit (range 9) 1530 | -10/Mines | Build established: Mutant 1638 | -10/Mines | Assembled infested the area 1643 | -10/Mines | Assisted by a Guerilla fighting off Assembled 1659 | -10/Mines | Core integrity fell below 50% 1670 | -10/Mines | Core integrity fell below 20% 1687 | -10/Mines | Destroyed by as-54665 with Assembled Rifle Last Messages --------------- 01648_ as-94210 destroyed. 01649_ HV Slug penetrates as-53536. 01649_ as-53536 suffers critical hit (Destroy). 01649_ HV Slug penetrates Wall. 01651_ PP-I9P(h) system corrupted by crushing effect. 01651_ HV Slug penetrates as-70105. 01651_ as-70105 suffers critical hit (Destroy). 01651_ as-70105 destroyed. 01652_ PP-I9P(h) system terminally corrupted. 01654_ as-07490 destroyed. 01660_ Aluminum Leg destroyed. 01662_ Lgt. Nuclear Core destroyed. 01662_ Imp. Terrain Scanner destroyed. 01663_ as-73841 destroyed. 01665_ as-25121 destroyed. 01677_ Overheating: System interference. 01677_ Beam Cannon temporarily disabled. 01680_ Aluminum Leg destroyed. 01682_ Beam Cannon destroyed. 01685_ as-57954 destroyed. Map ----- +----------------------------------------------------+ | ???????????????????????????????????????????? ? | | ??????????????????????????????????????##???? ? | | ???????????????????????????????????????????# # | | ??????????????????????????????????#????????# # | | ???????????????????????????????????????????# # | | ???????????????? ??????????# ??????????????# # | | ???????????????? #???????? ?????????????# # | | ???????????????? #???????? #???#????????# # | | ???????????????# "???????? ##??????????# # | | ???????? ?????? ##???? ??? ##????????# # | | ??????????????? ##?## ????# ###????#?# # | | ??????????????? #??# ?#???# ##???### # | | ??????????????? #?## ##????# #??## # | | ??????????????? ?? ?????# #### # | | ??????? ????## ?? ? ????? ## | | ????????????##%% ????# $??#?? | | ????????????# %%#????# #?#? | | ????????????# %]#?????# #?? r | | ????????????# % ?????## ## # | | ????????????# %#?????# ### ## | | ??????#?????# #??????# ##?# ### | | ????????????# #??????## #??# #?? | | ??????#?????# #???????# #???# ##?? | | ??#????????##aa######### ##???# ##??? | | ????????????# aaa% ####???####???? | | ????????????# aa%a @ ###?????????????? | | ????????????###################????#??????????? | | ????????#??????#???????????????????#???????#??? | | ???????#??????????????#?????????#?????????#???? | | | | | | | | | | | | | | | | | | | | | | | | | | | | | | | | | | | | | | | | | | | +----------------------------------------------------+ Best States ------------- Heat Dissipation 25 Energy Generation 14 Energy Capacity 250 Matter Stores 300 Matter Capacity 300 Sight Range 16 Terrain Scan Range 16 Terrain Scan Density 10 Resistance: KI 20 Resistance: TH 20 Resistance: EX 20 Resistance: EM 20 Resistance: I 20 Resistance: S 20 Resistance: P 20 Evasion (%) 55 Offensive Hacking 10 Item Schematics ----------------- None Robot Schematics ------------------ None Fabricated ------------ Nothing Alien Tech Used ----------------- None Achievements -------------- None Challenges ------------ None Game ------ Seed ProcessingRocketStabilizer Manual? 0 Play Time 00:21:51 Cumulative 4.4 hours Start 2022.04.28 @ 21:02:55 End 2022.04.28 @ 21:23:28 Sessions 1 Manual Loads 0 Difficulty Adventurer Special Mode None Game No. 7 Rogue 5 Adventurer 2 Explorer 0 Win Type - Total 0 Types 0/0/0/0/0/0/0/0/0 Lore% 4 Gallery% 8 Achievement% 7 Wizard Run 0 Options --------- ASCII 0 Keyboard 0 Movement Numpad Keybinds 0 Fullscreen 1 Font 18/X11 Map View 76x50 Tactical HUD 1 Map Filters NONE Filters NONE Steam 1 RUN: cba5d34f-8a1a-46eb-8fad-81d5871d5d52